bitfinex-derivatives/quotes_ETHF0:USTF0_20250727
["timestamp","ask_amount","ask_price","bid_price","bid_amount"]
[1753610480244,0.5756,3771.2,3771.1,2.5935]
[1753610480449,1.415,3771.2,3771.1,3.9016]
[1753610480749,0.53017,3771.0,3770.8,4.59499]
[1753610480947,1.32511,3772.0,3770.8,6.5606]
[1753610480948,1.94519,3770.9,3770.8,6.5606]
[1753610481149,1.415,3770.9,3770.8,30.4468]
[1753610481452,1.415,3770.9,3770.8,30.9956]
[1753610481648,1.415,3770.9,3770.8,7.6396]
[1753610481854,1.415,3770.9,3770.8,30.9866]
[1753610483055,1.94519,3770.9,3770.8,30.4564]
[1753610483559,1.415,3770.9,3770.8,30.9866]
[1753610483749,1.415,3770.9,3770.8,30.4564]
[1753610483946,1.94519,3770.9,3770.8,30.4564]
[1753610484752,3.2078,3772.3,3770.8,30.4564]
[1753610484753,1.62408972,3773.3,3770.8,31.5548]
[1753610484951,1.36931,3772.9,3772.8,4.3955]
[1753610485258,1.36931,3772.9,3772.8,3.2078]
[1753610485450,2.06465692,3772.9,3772.8,3.2078]
[1753610486252,0.52996,3772.5,3772.4,1.1877]
[1753610486455,1.36936,3772.5,3772.4,4.3955]
[1753610486655,2.06482096,3772.5,3772.4,4.3955]
[1753610486852,2.0648743,3772.5,3772.4,4.3955]
[1753610487259,1.36936,3772.5,3772.4,4.3955]
[1753610487459,1.36936,3772.5,3772.4,5.2525]
[1753610487460,1.40906,3772.5,3772.4,5.2525]
[1753610487662,0.0397,3772.4,3772.1,2.4787]
[1753610487863,0.53002,3772.1,3772.0,8.0052]
[1753610488155,0.53002,3772.1,3772.0,9.47073]
[1753610488358,0.8813,3772.3,3772.0,8.9407]
[1753610488558,1.41129,3772.3,3772.2,5.7329]
[1753610489854,2.00499,3772.3,3772.2,5.7329]
[1753610490255,0.0397,3772.7,3772.2,5.7329]
[1753610490562,2.00495,3772.6,3772.5,8.9407]
[1753610490863,1.475,3773.1,3773.0,1.6997]
[1753610491062,2.04458,3773.1,3773.0,4.1784]
[1753610491263,2.19288,3773.1,3773.0,4.1784]
[1753610491561,2.93952893,3773.1,3773.0,3.161]
[1753610492356,2.93986427,3773.1,3773.0,3.161]
[1753610493061,2.93986427,3773.1,3773.0,4.1784]
[1753610493262,2.80206427,3773.1,3773.0,8.0052]
[1753610493465,2.80201105,3773.1,3773.0,8.0052]
[1753610493662,2.10808,3773.1,3773.0,8.0052]
[1753610493962,2.00488,3773.1,3773.0,8.0052]
[1753610494553,0.52988,3773.1,3773.0,8.9407]
[1753610494758,2.00488,3773.1,3773.0,8.9407]
[1753610494961,2.00488,3773.1,3773.0,8.0052]
[1753610495657,2.00488,3773.1,3773.0,8.9407]
[1753610495857,2.00488,3773.1,3773.0,9.47059]
[1753610496158,2.00488,3773.1,3773.0,8.9407]
[1753610496560,2.00488,3773.1,3773.0,9.47059]
[1753610497362,2.00488,3773.1,3773.0,8.9407]
[1753610497868,2.00488,3773.1,3773.0,9.47059]
[1753610498367,2.00488,3773.1,3773.0,8.9407]
[1753610498665,1.475,3773.1,3773.0,9.47059]
[1753610498966,2.00488,3773.1,3773.0,9.47059]
[1753610499668,1.16324,3773.4,3773.3,2.3187]
[1753610499965,1.16324,3773.4,3773.3,4.7974]
[1753610499966,2.74252464,3773.4,3773.3,4.7974]
[1753610500365,2.94382464,3773.4,3773.3,4.7974]
[1753610500568,2.94382464,3773.4,3773.3,4.1784]
[1753610501363,2.94382464,3773.4,3773.3,3.161]
[1753610501767,0.69798464,3773.4,3773.3,14.81266]
[1753610501968,2.20477,3773.9,3773.8,2.3187]
[1753610502269,2.20477,3773.9,3773.8,4.7974]
[1753610502270,3.09063576,3773.9,3773.8,4.7974]
[1753610502466,3.14363576,3773.9,3773.8,4.1784]
[1753610502662,2.61386576,3773.9,3773.7,3.2078]
[1753610502866,2.94364576,3773.8,3773.7,4.6691]
[1753610503067,2.94364576,3773.8,3773.7,6.35710934]
[1753610503264,2.94364576,3773.8,3773.7,7.37450934]
[1753610503460,2.94364576,3773.8,3773.7,7.99350934]
[1753610503664,2.74234576,3773.8,3773.7,7.99350934]
[1753610503867,2.70264576,3773.8,3773.7,8.00919]
[1753610504271,2.70264576,3773.8,3773.7,7.4794]
[1753610504571,2.70264576,3773.8,3773.7,8.00919]
[1753610505070,2.70264576,3773.8,3773.7,8.0052]
[1753610505267,2.90934576,3773.8,3773.7,8.0052]
[1753610505571,2.97404576,3773.8,3773.7,8.0052]
[1753610506267,2.90934576,3773.8,3773.7,8.0052]
[1753610507273,2.90934576,3773.8,3773.7,8.53499]
[1753610507472,2.90934576,3773.8,3773.7,8.0052]
[1753610508471,2.90934576,3773.8,3773.7,8.53499]
[1753610508673,2.74234576,3773.8,3773.7,8.53499]
[1753610508869,2.74234576,3773.8,3773.7,8.0052]
[1753610510074,2.70264576,3773.8,3773.7,8.9407]
[1753610510574,2.17286576,3773.8,3773.7,9.47049]
[1753610510769,0.8813,3774.6,3773.7,23.0204]
[1753610510979,1.82114284,3774.5,3774.4,8.9407]
[1753610511277,1.39482,3774.2,3774.1,4.1784]
[1753610511472,1.39482,3774.2,3774.1,4.7974]
[1753610511876,1.39482,3774.2,3774.1,5.7329]
[1753610512179,1.39484,3774.1,3774.0,8.0052]
[1753610512977,2.27614,3774.1,3774.0,8.0052]
[1753610513470,2.27614,3774.1,3774.0,6.9878]
[1753610514078,2.27614,3774.1,3774.0,8.0052]
[1753610515683,2.27614,3774.1,3774.0,8.9407]
[1753610517680,2.27614,3774.1,3774.0,6.9878]
[1753610518281,2.27614,3774.1,3774.0,8.1093]
[1753610518481,2.27614,3774.1,3774.0,9.0451]
[1753610518781,2.27614,3774.1,3774.0,9.57485]
[1753610518987,1.11553,3774.2,3774.1,5.6512]
[1753610519180,2.05073,3774.2,3774.1,5.6512]
[1753610519681,2.10333,3774.2,3774.1,5.6512]
[1753610520185,2.10333,3774.2,3774.1,6.18094]
[1753610521986,2.10333,3774.2,3774.1,5.6512]
[1753610522191,2.10333,3774.2,3774.1,6.18094]
[1753610522487,2.40073,3774.2,3774.1,5.6512]
[1753610522883,3.08188889,3774.2,3774.1,5.6512]
[1753610523079,3.08188889,3774.2,3774.1,2.973]
[1753610523286,3.08188889,3774.2,3774.1,3.5939]
[1753610523491,3.08188889,3774.2,3774.1,5.6512]
[1753610524286,3.08188889,3774.2,3774.1,4.0945]
[1753610524490,3.08188889,3774.2,3774.1,2.973]
[1753610524992,3.08188889,3774.2,3774.1,4.0945]
[1753610525184,3.08188889,3774.2,3774.1,4.7154]
[1753610525392,3.08188889,3774.2,3774.1,5.6512]
[1753610528294,2.40073,3774.2,3774.1,5.6512]
[1753610529597,2.40073,3774.2,3774.1,4.7154]
[1753610530386,1.32428,3774.3,3773.8,1.1215]
[1753610530593,2.40081,3773.6,3773.5,8.859]
[1753610532694,2.40081,3773.6,3773.5,1.3603]
[1753610532901,1.33105,3773.3,3773.2,5.6512]
[1753610533097,2.40085,3773.3,3773.2,5.6512]
[1753610533704,2.40085,3773.3,3773.2,3.5939]
[1753610534298,2.40085,3773.3,3773.2,1.3603]
[1753610534995,1.871,3773.2,3772.9,6.6254]
[1753610535197,2.40089,3773.0,3772.9,8.2381]
[1753610535395,2.40089,3773.0,3772.9,5.6512]
[1753610535599,2.40089,3773.0,3772.9,4.7154]
[1753610535902,2.40089,3773.0,3772.9,3.5939]
[1753610536897,2.40092,3772.8,3772.7,25.693]
[1753610537103,2.40092,3772.8,3772.7,26.8145]
[1753610537302,2.40092,3772.8,3772.7,28.3712]
[1753610538699,2.40092,3772.8,3772.7,5.6512]
[1753610539101,2.40092,3772.8,3772.7,2.973]
[1753610539292,2.40092,3772.8,3772.7,5.6512]
[1753610540104,1.33113,3772.7,3772.6,22.68]
[1753610540310,1.0698,3772.8,3772.5,1.3603]
[1753610540311,2.40095,3772.6,3772.5,1.3603]
[1753610540606,2.40098,3772.4,3772.3,2.973]
[1753610540908,2.401,3772.2,3772.1,24.0103]
[1753610542208,2.401,3772.2,3772.1,26.7445]
[1753610542708,1.1158,3772.2,3772.1,31.509]
[1753610542908,0.53,3772.2,3772.1,31.509]
[1753610544205,0.53,3772.3,3772.1,32.03902]
[1753610544400,0.52999,3772.3,3772.2,5.6512]
[1753610545013,0.9352,3772.5,3772.3,5.6512]
[1753610545209,1.11575,3772.6,3772.5,2.2336]
[1753610545412,2.05095,3772.6,3772.5,5.6512]
[1753610546918,2.06595,3772.6,3772.5,5.6512]
[1753610549115,2.06595,3772.6,3772.5,2.2832]
[1753610549314,2.0678,3772.2,3772.1,6.6341]
[1753610549516,2.0678,3772.2,3772.1,35.03107424]
[1753610549718,1.9677,3772.2,3772.1,35.03107424]
[1753610549917,1.954,3772.2,3772.1,35.03107424]
[1753610550317,0.567,3772.2,3772.1,35.56109424]
[1753610550513,0.857,3772.5,3772.1,32.13479424]
[1753610550718,1.96766,3772.5,3772.4,2.2605]
[1753610550919,2.06776,3772.5,3772.4,28.2358]
[1753610552519,1.96766,3772.5,3772.4,28.2358]
[1753610553920,2.03766,3772.5,3772.4,28.2358]
[1753610554124,2.06776,3772.5,3772.4,28.2358]
[1753610556016,1.95396,3772.5,3772.4,28.2358]
[1753610557217,1.96766,3772.5,3772.4,28.2358]
[1753610557417,2.06776,3772.5,3772.4,28.2358]
[1753610557927,2.06776,3772.5,3772.4,25.6374]
[1753610558125,2.05415,3771.9,3771.8,0.1961902]
[1753610558320,2.06785,3771.9,3771.8,24.0727902]
[1753610558519,2.06785,3771.9,3771.8,26.8138902]
[1753610558720,2.06785,3771.9,3771.8,28.3309902]
[1753610560427,2.03775,3771.9,3771.8,28.3309902]
[1753610561625,0.53005,3771.9,3771.8,31.90546444]
[1753610562620,2.06785,3771.9,3771.8,26.2982902]
[1753610562824,2.06785,3771.9,3771.8,25.6975902]
[1753610563131,2.06785,3771.9,3771.8,24.0377902]
[1753610563425,2.06785,3771.9,3771.8,2e-07]
[1753610564832,2.06785,3771.9,3771.8,1.4286002]
[1753610565329,3.2078,3773.2,3772.6,5.0143]
[1753610565524,0.52993,3772.7,3772.6,5.6868]
[1753610565834,0.52993,3772.7,3772.6,28.0628]
[1753610571635,1.21412558,3772.7,3772.6,28.0628]
[1753610573735,0.52993,3772.7,3772.6,28.0628]
[1753610574135,1.21416456,3772.7,3772.6,28.0628]
[1753610574331,0.52993,3772.7,3772.6,28.0628]
[1753610576840,0.54363,3772.7,3772.6,28.0628]
[1753610580542,1.11063,3772.7,3772.6,28.0628]
[1753610593954,1.54103,3772.7,3772.6,28.0628]
[1753610594147,1.11063,3772.7,3772.6,28.0628]
[1753610612773,1.10279,3772.3,3772.2,4.6197]
[1753610612965,1.10279,3772.3,3772.2,26.8657]
[1753610613161,1.10279,3772.3,3772.2,30.0735]
[1753610613365,1.10279,3772.3,3772.2,30.9217]
[1753610614070,1.10279,3772.3,3772.2,27.7139]
[1753610614267,1.10279,3772.3,3772.2,30.9217]
[1753610614772,1.10271,3772.9,3772.8,5.4679]
[1753610615068,1.78819536,3772.9,3772.8,27.7129]
[1753610617468,4.65694081,3773.7,3773.4,2.1715]
[1753610617663,1.21508861,3773.6,3773.5,27.7119]
[1753610619574,1.21508861,3773.6,3773.5,5.4679]
[1753610619774,1.78788861,3773.6,3773.5,27.7089]
[1753610619968,1.21508861,3773.6,3773.5,27.7089]
[1753610621675,1.21508861,3773.6,3773.5,29.82927424]
[1753610622770,0.52981,3773.6,3773.5,29.82927424]
[1753610625871,0.52981,3773.6,3773.5,33.03707424]
[1753610630671,0.52981,3773.6,3773.5,29.82927424]
[1753610630977,0.52981,3773.6,3773.5,33.03707424]
[1753610634286,0.52981,3773.6,3773.5,29.82927424]
[1753610635185,0.52981,3773.6,3773.5,33.03707424]
[1753610635481,0.52981,3773.6,3773.5,29.82927424]
[1753610635683,0.52981,3773.6,3773.5,33.03707424]
[1753610636583,0.52977,3773.9,3773.6,1.004]
[1753610636784,1.10255,3774.0,3773.9,4.4639]
[1753610637083,1.10255,3774.0,3773.9,27.6869]
[1753610641482,1.53415,3774.0,3773.9,27.6869]
[1753610643785,1.10255,3774.0,3773.9,27.6869]
[1753610646893,0.52975,3774.0,3773.9,27.6869]
[1753610647095,0.52975,3774.0,3773.9,30.8947]
[1753610647285,0.52975,3774.1,3773.9,29.8907]
[1753610647486,1.32412,3774.8,3774.1,3.2981]
[1753610647686,0.52972,3774.2,3774.1,2.1979]
[1753610647892,0.52972,3774.2,3774.1,24.4009]
[1753610648297,0.52972,3774.2,3774.1,27.698]
[1753610648790,1.14322,3774.2,3774.1,27.698]
[1753610650402,4.35093,3774.9,3774.8,5.496]
[1753610650588,5.04885349,3774.9,3774.8,27.695]
[1753610650898,4.35093,3774.9,3774.8,27.695]
[1753610651597,1.14313,3774.9,3774.8,27.695]
[1753610652191,0.52963,3774.9,3774.8,27.695]
[1753610653392,1.14313,3774.9,3774.8,27.695]
[1753610655602,0.52963,3774.9,3774.8,27.695]
[1753610655795,0.52963,3774.9,3774.8,29.81537424]
[1753610656994,0.52963,3774.9,3774.8,33.02317424]
[1753610656995,1.14313,3774.9,3774.8,33.02317424]
[1753610657193,1.14313,3774.9,3774.8,29.81537424]
[1753610657398,0.52963,3774.9,3774.8,29.81537424]
[1753610658297,1.32393,3775.4,3774.9,1.9142]
[1753610658602,4.35081,3775.7,3775.6,5.496]
[1753610658901,5.04776872,3775.7,3775.6,5.496]
[1753610659799,4.43426872,3775.7,3775.6,5.496]
[1753610659998,5.04776872,3775.7,3775.6,5.496]
[1753610660304,4.35081,3775.7,3775.6,5.496]
[1753610661393,0.6135,3775.1,3775.0,0.8688]
[1753610661597,1.5747,3775.1,3775.0,4.4506]
[1753610661792,1.5747,3775.1,3775.0,5.496]
[1753610661997,1.1431,3775.1,3775.0,5.496]
[1753610662498,1.1431,3775.1,3775.0,27.671]
[1753610662697,1.5747,3775.1,3775.0,26.6256]
[1753610662899,1.5747,3775.1,3775.0,24.4277]
[1753610663204,1.1431,3775.1,3775.0,27.671]
[1753610663699,0.5296,3775.1,3775.0,27.671]
[1753610663904,0.5296,3775.1,3775.0,29.79137424]
[1753610664097,0.5296,3775.1,3775.0,27.671]
[1753610664296,0.5296,3775.1,3775.0,29.79137424]
[1753610664700,0.52958,3775.2,3775.0,26.49327424]
[1753610664992,3.73738,3775.3,3775.1,5.496]
[1753610665197,3.73738,3775.3,3775.2,27.667]
[1753610665401,0.52958,3775.3,3775.2,27.667]
[1753610665602,0.52958,3775.3,3775.2,29.78737424]
[1753610665905,3.2078,3775.3,3775.2,0.20748]
[1753610666110,0.60608,3775.3,3775.2,0.20748]
[1753610667597,0.60608,3775.3,3775.2,27.7468]
[1753610667904,0.52958,3775.3,3775.2,27.7448]
[1753610668205,0.52958,3775.3,3775.2,29.86517424]
[1753610669800,0.60258,3775.3,3775.2,29.86517424]
[1753610670507,0.60258,3775.3,3775.2,5.5798]
[1753610670698,0.60258,3775.3,3775.2,27.7428]
[1753610671503,0.60258,3775.3,3775.2,5.5798]
[1753610671705,0.64818,3775.3,3775.2,0.9374]
[1753610671906,0.64818,3775.3,3775.2,23.0954]
[1753610672304,0.52958,3775.3,3775.2,29.89257424]
[1753610672698,0.60258,3775.3,3775.2,0.9374]
[1753610672902,0.64818,3775.3,3775.2,23.0934]
[1753610673703,0.64818,3775.3,3775.2,5.6142]
[1753610673704,0.52958,3775.3,3775.2,5.6142]
[1753610673904,0.52958,3775.3,3775.2,29.88957424]
[1753610675306,0.60258,3775.3,3775.2,29.88957424]
[1753610675511,0.60258,3775.3,3775.2,5.6142]
[1753610675805,0.64818,3775.3,3775.2,23.0894]
[1753610676011,0.64818,3775.3,3775.2,24.4883]
[1753610676219,0.60258,3775.3,3775.2,24.4883]
[1753610676405,1.30632666,3775.3,3775.2,25.112]
[1753610676606,1.30632539,3775.3,3775.2,25.112]
[1753610676806,0.60258,3775.3,3775.2,25.112]
[1753610677311,0.60258,3775.3,3775.2,26.1758]
[1753610677509,1.31043,3774.9,3774.8,6.1971]
[1753610677703,1.90803,3774.9,3774.8,2.9893]
[1753610679015,1.90803,3774.9,3774.8,3.613]
[1753610679316,1.90803,3774.9,3774.8,26.8248]
[1753610679614,1.90803,3774.9,3774.8,27.7622]
[1753610679816,1.90803,3774.9,3774.8,5.6142]
[1753610680017,1.90803,3774.9,3774.8,27.7602]
[1753610680206,1.90807,3774.6,3774.5,5.6142]
[1753610680406,1.90807,3774.6,3774.5,26.6954]
[1753610681814,2.61236504,3774.6,3774.5,26.6954]
[1753610682316,1.90807,3774.6,3774.5,26.6954]
[1753610684616,1.90807,3774.6,3774.5,22.145]
[1753610685014,1.12731,3774.3,3774.2,0.9374]
[1753610685213,1.90821,3774.3,3774.2,24.4763]
[1753610686022,1.90821,3774.3,3774.2,2.3363]
[1753610686222,1.90825,3774.0,3773.9,5.6142]
[1753610686418,1.90825,3774.0,3773.9,27.7522]
[1753610687824,1.12735,3774.0,3773.9,27.7522]
[1753610691920,1.90825,3774.0,3773.9,27.7522]
[1753610696328,2.01007458,3774.0,3773.9,27.7522]
[1753610697127,1.90825,3774.0,3773.9,27.7522]
[1753610697630,1.12735,3774.0,3773.9,27.7522]
[1753610702528,1.10315,3774.0,3773.9,27.7522]
[1753610703436,1.88515,3774.0,3773.9,27.7522]
[1753610703934,1.10315,3774.0,3773.9,27.7522]
[1753610711144,1.88515,3774.0,3773.9,27.7522]
[1753610711348,2.58837266,3774.0,3773.9,27.7522]
[1753610712247,1.80637266,3774.0,3773.9,27.7522]
[1753610713144,1.10315,3774.0,3773.9,27.7522]
[1753610714050,1.80666631,3774.0,3773.9,27.7522]
[1753610722256,2.58866631,3774.0,3773.9,27.7522]
[1753610722856,3.38332631,3774.0,3773.7,1.282]
[1753610723055,1.88518,3773.8,3773.7,2.137]
[1753610723255,2.58869631,3773.8,3773.7,24.215]
[1753610723757,2.58869631,3773.8,3773.7,25.2225]
[1753610724059,2.58869631,3773.8,3773.7,27.4156]
[1753610725159,2.58869631,3773.8,3773.7,5.3376]
[1753610725359,2.58869631,3773.8,3773.7,27.4156]
[1753610729364,1.80669631,3773.8,3773.7,27.4156]
[1753610731161,0.52968,3774.5,3774.4,3.2832]
[1753610731367,3.09911,3775.0,3774.9,2.2254]
[1753610731563,7.08841,3775.0,3774.9,2.2254]
[1753610731764,47.88841,3775.0,3774.9,2.2254]
[1753610732065,48.01506568,3775.0,3774.9,1.6249]
[1753610732861,2.75134,3774.8,3774.7,4.5717]
[1753610733066,0.52968,3774.5,3774.4,3.2078]
[1753610733265,0.52968,3774.5,3774.4,4.5717]
[1753610734865,0.52968,3774.5,3774.4,5.5086]
[1753610744586,1.32412,3774.8,3774.4,2.2254]
[1753610744780,1.32408,3774.9,3774.7,2.2254]
[1753610745086,0.52962,3774.9,3774.8,5.5086]
[1753610750585,0.52962,3774.9,3774.8,27.5346]
[1753610751690,2.8309,3775.4,3775.3,2.2254]
[1753610751886,5.52875,3775.4,3775.3,27.5326]
[1753610753690,0.52955,3775.4,3775.3,27.5326]
[1753610754288,0.6092,3775.6,3775.3,26.5051]
[1753610754492,3.73731,3775.7,3775.6,5.5086]
[1753610754793,3.73731,3775.7,3775.6,27.5256]
[1753610754981,4.36081,3775.7,3775.6,27.5256]
[1753610755186,4.97001,3775.7,3775.6,27.5256]
[1753610756984,3.73731,3775.7,3775.6,27.5256]
[1753610757490,0.52951,3775.7,3775.6,27.5256]
[1753610759694,4.91221,3775.7,3775.6,27.5256]
[1753610759999,4.91221,3775.7,3775.6,5.5086]
[1753610760203,5.55681,3775.7,3775.6,27.5126]
[1753610762196,5.55681,3775.7,3775.6,27.5116]
[1753610763396,0.52955,3775.4,3775.3,7.297]
[1753610763697,5.55685,3775.4,3775.3,27.3649]
[1753610764093,5.55685,3775.4,3774.8,3.2078]
[1753610764094,0.52958,3775.2,3775.1,2.3567]
[1753610764301,5.55688,3775.2,3775.1,26.4855]
[1753610764496,3.98918,3775.2,3775.1,27.3639]
[1753610764695,1.12458,3775.2,3775.1,27.3639]
[1753610764895,1.12458,3775.2,3775.1,27.3629]
[1753610766594,0.52958,3775.2,3775.1,27.3629]
[1753610767294,2.44684,3775.9,3775.1,24.1776]
[1753610767495,1.7214,3775.8,3775.7,5.3679]
[1753610767800,3.081,3775.8,3775.7,27.3579]
[1753610768001,4.9122,3775.8,3775.7,27.3579]
[1753610768202,5.5568,3775.8,3775.7,27.3579]
[1753610771897,5.5568,3775.8,3775.7,22.674]
[1753610772202,5.5568,3775.8,3775.7,21.99]
[1753610772403,5.5568,3775.8,3775.7,23.8966]
[1753610772704,5.5568,3775.8,3775.7,27.3579]
[1753610780501,3.9891,3775.8,3775.7,27.3579]
[1753610781003,4.9122,3775.8,3775.7,27.3579]
[1753610781501,5.5568,3775.8,3775.7,27.3579]
[1753610784610,5.5568,3775.8,3775.7,5.3679]
[1753610784806,5.5568,3775.8,3775.7,27.3259]
[1753610795211,1.7214,3775.8,3775.7,27.3259]
[1753610795608,3.9305,3775.8,3775.7,27.3259]
[1753610795809,4.8091,3775.8,3775.7,27.3259]
[1753610797215,5.5017,3775.8,3775.7,27.3259]
[1753610799315,5.5017,3775.8,3775.7,5.3679]
[1753610799521,5.5017,3775.8,3775.7,27.2939]
[1753610804423,5.5017,3775.8,3775.7,22.602]
[1753610804724,6.19245621,3775.8,3775.7,27.3141]
[1753610805124,6.19245748,3775.8,3775.7,27.3141]
[1753610806226,5.5017,3775.8,3775.7,27.3141]
[1753610806624,6.19243108,3775.8,3775.7,27.3121]
[1753610807320,6.19243655,3775.8,3775.7,27.3121]
[1753610811425,6.19243655,3775.8,3775.5,3.1892]
[1753610811426,5.43893,3775.6,3775.5,3.1892]
[1753610811632,6.12966655,3775.6,3775.5,25.0932]
[1753610811932,0.52962,3774.9,3774.8,8.5782]
[1753610812233,0.52962,3774.9,3774.8,30.4792]
[1753610812921,0.52962,3774.9,3774.8,8.5782]
[1753610812922,4.74642,3774.9,3774.8,8.5782]
[1753610813123,4.74642,3774.9,3774.8,30.4772]
[1753610813431,3.84482,3774.9,3774.8,30.4772]
[1753610814535,2.53732,3774.9,3774.8,30.4772]
[1753610817335,5.43902,3774.9,3774.8,30.4692]
[1753610817736,4.53742,3774.9,3774.8,30.4692]
[1753610817932,4.53742,3774.9,3773.6,4.64055765]
[1753610817933,0.52969,3774.4,3774.3,5.2167]
[1753610818243,0.52969,3774.4,3774.3,27.1077]
[1753610818744,0.52969,3774.4,3774.3,30.3155]
[1753610819239,0.52969,3774.4,3774.3,30.3135]
[1753610819644,0.52969,3774.4,3774.3,27.1057]
[1753610819845,0.52969,3774.4,3774.3,27.1027]
[1753610820739,0.52969,3774.4,3774.3,30.3105]
[1753610822246,0.52969,3774.4,3774.3,35.3105]
[1753610824636,3.2078,3775.2,3774.8,0.52964]
[1753610824842,0.52954,3775.5,3775.4,5.2167]
[1753610825045,0.52954,3775.5,3775.4,27.0947]
[1753610829249,0.52953,3775.6,3775.4,27.0947]
[1753610829456,2.08933,3775.6,3775.5,5.2167]
[1753610829654,3.32493,3775.6,3775.5,5.2167]
[1753610831952,5.71223,3775.6,3775.5,5.2167]
[1753610832843,2.4652,3775.2,3775.1,3.2078]
[1753610833048,5.71228,3775.2,3775.1,21.86]
[1753610833448,5.71228,3775.2,3775.1,24.9916]
[1753610833653,5.71228,3775.2,3775.1,25.6068]
[1753610834255,5.71228,3775.2,3775.1,27.0767]
[1753610834649,5.71228,3775.2,3775.1,5.2167]
[1753610834849,5.71228,3775.2,3775.1,27.0767]
[1753610836450,5.71228,3775.2,3775.1,30.2845]
[1753610836658,5.71228,3775.2,3775.1,27.0737]
[1753610837852,5.1827,3775.2,3774.7,3.2078]
[1753610838056,5.71234,3774.8,3774.7,8.4245]
[1753610838355,5.71234,3774.8,3774.7,27.0667]
[1753610839154,2.00027,3774.6,3774.5,1.5655]
[1753610839454,5.71237,3774.6,3774.5,27.0657]
[1753610840954,5.71227,3775.3,3775.2,5.2167]
[1753610841156,5.71227,3775.3,3775.2,27.0657]
[1753610842457,0.52957,3775.3,3775.2,27.0657]
[1753610842953,4.80687,3775.3,3775.2,27.0657]
[1753610843259,5.71227,3775.3,3775.2,27.0657]
[1753610844958,1.14427,3775.3,3775.2,30.2735]
[1753610845460,2.08937,3775.3,3775.2,30.2735]
[1753610845758,0.52957,3775.3,3775.2,30.2735]
[1753610846353,5.71227,3775.3,3775.2,5.2929]
[1753610846553,5.71227,3775.3,3775.2,23.9251]
[1753610847055,5.71227,3775.3,3775.2,27.0567]
[1753610848153,0.52957,3775.3,3775.2,27.0567]
[1753610848359,0.52957,3775.3,3775.2,27.0487]
[1753610848559,0.52957,3775.3,3775.2,27.57828]
[1753610850751,0.52957,3775.3,3775.2,5.74628]
[1753610850953,0.52957,3775.3,3775.2,27.0427]
[1753610851352,0.52957,3775.3,3775.2,27.57228]
[1753610853357,0.52957,3775.3,3775.2,27.0427]
[1753610853561,0.52957,3775.3,3775.2,27.57228]
[1753610858464,0.52957,3775.4,3775.3,2.59715]
[1753610858665,0.52957,3775.4,3775.3,5.65665]
[1753610858860,1.44244,3775.5,3775.4,1.77155]
[1753610859064,2.1979,3775.6,3775.5,5.65664]
[1753610859065,0.52954,3775.6,3775.5,5.65664]
[1753610859263,4.15648,3775.9,3775.8,2.0676]
[1753610859461,5.02908,3775.9,3775.8,26.9371]
[1753610859767,5.94198,3775.9,3775.8,26.9371]
[1753610865464,2.25998,3775.9,3775.8,26.9371]
[1753610866071,3.58528,3775.9,3775.8,26.9371]
[1753610866258,0.72948,3775.9,3775.8,26.9371]
[1753610866468,0.72948,3775.9,3775.8,30.6744]
[1753610866469,0.2,3775.9,3775.8,30.6744]
[1753610868572,2.674,3776.5,3776.4,5.1271]
[1753610868774,2.674,3776.5,3776.4,26.9181]
[1753610868960,5.7419,3776.5,3776.4,26.9181]
[1753610869161,5.7419,3776.5,3776.4,5.1271]
[1753610869365,0.52943,3776.3,3776.2,3.2078]
[1753610869563,5.74193,3776.3,3776.2,27.1088]
[1753610869770,5.74193,3776.3,3776.2,24.9958]
[1753610870169,5.74193,3776.3,3776.2,25.25761351]
[1753610870967,5.74193,3776.3,3776.2,3.2078]
[1753610871167,5.74193,3776.3,3776.2,24.9938]
[1753610871874,5.74193,3776.3,3776.2,30.1209]
[1753610873176,5.74193,3776.3,3776.2,26.9131]
[1753610880984,5.74193,3776.3,3776.2,26.8961]
[1753610881184,5.74193,3776.3,3776.2,25.9456]
[1753610881984,5.74193,3776.3,3776.2,26.8858]
[1753610883483,1.72906,3776.1,3776.0,2.72120719]
[1753610883689,5.70466,3776.1,3776.0,25.5412]
[1753610883879,5.70466,3776.1,3776.0,27.0627]
[1753610889002,5.70471,3775.7,3775.6,8.5105]
[1753610889192,5.70471,3775.7,3775.6,30.2615]
[1753610889392,5.70471,3775.7,3775.6,24.0008]
[1753610890002,5.70471,3775.7,3775.6,27.0517]
[1753610892503,1.49861,3775.7,3775.6,27.0517]
[1753610892806,2.06441,3775.7,3775.6,27.0517]
[1753610893102,3.90521,3775.7,3775.6,27.0517]
[1753610893808,4.78811,3775.7,3775.6,27.0517]
[1753610894000,5.70471,3775.7,3775.6,27.0517]
[1753610896400,5.70471,3775.7,3775.6,30.2595]
[1753610896607,5.70471,3775.7,3775.6,27.0517]
[1753610899598,5.70471,3775.7,3775.6,5.3027]
[1753610899909,5.70475,3775.4,3775.3,5.3027]
[1753610900102,5.70475,3775.4,3775.3,27.0347]
[1753610901209,5.70475,3775.4,3775.3,27.0337]
[1753610902010,5.70475,3775.4,3775.3,5.3027]
[1753610902212,5.70475,3775.4,3775.3,27.0317]
[1753610904709,5.70475,3775.4,3775.3,27.0287]
[1753610906409,5.70475,3775.4,3775.3,5.3027]
[1753610906609,5.70475,3775.4,3775.3,27.0217]
[1753610907611,5.70475,3775.4,3775.3,27.0207]
[1753610910913,0.52957,3775.3,3775.2,4.0721]
[1753610911113,2.05007,3775.3,3775.2,26.3606]